fUST/lending_fUST_20250221
["ID","MTS","AMOUNT","RATE_DAILY","PERIOD"]
[353887658,1740112256734,-500.0,0.00014849,2]
[353887659,1740112256744,-1788.15,0.00014849,2]
[353887660,1740112256753,-14987.05,0.00014849,2]
[353887661,1740112256763,-500.0,0.00014849,2]
[353887662,1740112256773,-121123.97642776,0.0001488,7]
[353887663,1740112256785,-151.0,0.0001488,2]
[353887664,1740112256794,-160.0,0.00014899,2]
[353887665,1740112256803,-28020.09638514,0.00014899,2]
[353887666,1740112256813,-198.0,0.000149,2]
[353887667,1740112256823,-198.0,0.000149,3]
[353887668,1740112256832,-193.36259432,0.000149,3]
[353887669,1740112256842,-3897.69,0.000149,2]
[353887670,1740112256852,-199.196782,0.000149,2]
[353887671,1740112256862,-156.168,0.000149,2]
[353887672,1740112256871,-156.168,0.000149,2]
[353887673,1740112256881,-151.0,0.000149,2]
[353887674,1740112256891,-618400.732722,0.000149,2]
[353887675,1740112256900,-161.522347,0.000149,2]
[353887676,1740112256909,-161.522347,0.000149,2]
[353887677,1740112256920,-161.847331,0.000149,2]
[353887678,1740112256930,-212.750623,0.000149,2]
[353887679,1740112256939,-212.750623,0.000149,2]
[353887680,1740112256949,-151.0,0.000149,2]
[353887681,1740112256959,-160.38987825,0.0001493,2]
[353887682,1740112256968,-55145.9122492,0.00014931,5]
[353887683,1740112256977,-9044.7251568,0.00014931,5]
[353887684,1740112256987,-500.0,0.00014931,2]
[353887685,1740112256996,-1333.54,0.00014931,2]
[353887686,1740112257006,-500.0,0.00014931,2]
[353887687,1740112257015,-500.0,0.00014931,2]
[353887688,1740112257024,-640.02,0.00014931,2]
[353887689,1740112257034,-500.0,0.00014931,2]
[353887690,1740112257043,-812.91,0.00014931,2]
[353887691,1740112257053,-500.0,0.00014931,2]
[353887692,1740112257062,-500.0,0.00014931,2]
[353887693,1740112257072,-500.0,0.00014931,2]
[353887694,1740112257082,-500.0,0.00014931,2]
[353887695,1740112257092,-580.29,0.00014931,2]
[353887696,1740112257102,-500.0,0.00014931,2]
[353887697,1740112257111,-974.15,0.00014931,2]
[353887698,1740112257120,-500.0,0.00014931,2]
[353887699,1740112257129,-500.0,0.00014931,2]
[353887700,1740112257139,-950.86,0.00014931,2]
[353887701,1740112257148,-718.47,0.00014931,2]
[353887702,1740112257157,-596.26,0.00014931,2]
[353887703,1740112257167,-640.49,0.00014931,2]
[353887704,1740112257175,-500.0,0.00014931,2]
[353887705,1740112257184,-422.71901577,0.00014931,2]
[353887706,1740112257193,-6912.66,0.00014931,2]
[353887707,1740112257203,-598.64,0.00014931,2]
[353887708,1740112257212,-2126.12,0.00014931,2]
[353887709,1740112257221,-2057.23,0.00014931,2]
[353887710,1740112257230,-1180.77,0.00014931,2]
[353887711,1740112257239,-500.0,0.00014931,2]
[353887712,1740112257248,-3110.89,0.00014931,2]
[353887713,1740112257257,-1063.8,0.00014931,2]
[353887714,1740112257267,-579.65,0.00014931,2]
[353887715,1740112257276,-1893.75,0.00014931,2]
[353887716,1740112257285,-1155.97,0.00014931,2]
[353887717,1740112257294,-500.0,0.00014931,2]
[353887718,1740112257303,-933.1,0.00014931,2]
[353887719,1740112257313,-950.54,0.00014931,2]
[353887720,1740112257323,-12368.39,0.00014931,2]
[353887721,1740112257333,-5183.19,0.00014931,2]
[353887722,1740112257342,-500.0,0.00014931,2]
[353887723,1740112257353,-29788.38,0.00014931,2]
[353887724,1740112257362,-915.53,0.00014931,2]
[353887725,1740112257373,-712.21,0.00014931,2]
[353887726,1740112257382,-823.68286984,0.00014931,2]
[353887727,1740112257588,-300.0,0.00013698,2]
[353887734,1740112699382,335.175925,9.041e-05,2]
[353887783,1740113432012,-533.2926281,0.00012714,2]
[353887785,1740113432021,-700.0,0.00013068,2]
[353887787,1740113432031,-300.0,0.00013697,2]
[353887788,1740113432040,-501.68187407,0.00013698,2]
[353887789,1740113432049,-500.75311462,0.00013698,2]
[353887791,1740113432059,-500.0,0.00013698,2]
[353887793,1740113432068,-500.0,0.00013698,2]
[353887795,1740113432079,-502.54489888,0.00013698,2]
[353887796,1740113432088,-504.58942517,0.00013698,2]
[353887797,1740113432099,-500.0,0.00013698,2]
[353887798,1740113432108,-500.0,0.00013698,2]
[353887799,1740113432117,-501.20063397,0.00013698,2]
[353887800,1740113432127,-500.0,0.00013698,2]
[353887801,1740113432136,-500.0,0.00013698,2]
[353887802,1740113432146,-500.0,0.00013698,2]
[353887804,1740113432155,-500.96050159,0.00013698,2]
[353887805,1740113432164,-500.0,0.00013698,2]
[353887806,1740113432174,-505.14736578,0.00013698,2]
[353887807,1740113432183,-500.94054936,0.00013698,2]
[353887808,1740113432192,-500.0,0.00013698,2]
[353887809,1740113432202,-539.06600983,0.00013698,2]
[353887810,1740113432211,-319.23557379,0.00013698,2]
[353887811,1740113432220,-500.0,0.00013698,2]
[353887812,1740113432230,-501.94886952,0.00013698,2]
[353887813,1740113432243,-300.6476815,0.00013698,2]
[353887814,1740113432252,-500.0,0.00013698,2]
[353887815,1740113432261,-500.0,0.00013698,2]
[353887816,1740113432271,-501.10152351,0.00013698,2]
[353887817,1740113432281,-500.0,0.00013698,2]
[353887818,1740113432290,-500.0,0.00013698,2]
[353887819,1740113432299,-500.0,0.00013698,2]
[353887820,1740113432309,-500.0,0.00013698,2]
[353887821,1740113432318,-500.0,0.00013698,2]
[353887822,1740113432329,-500.0,0.00013698,2]
[353887823,1740113432339,-500.0,0.00013698,2]
[353887824,1740113432348,-500.0,0.00013698,2]
[353887825,1740113432358,-500.0,0.00013698,2]
[353887826,1740113432367,-500.0,0.00013698,2]
[353887827,1740113432376,-504.87719007,0.00013698,2]
[353887828,1740113432385,-500.0,0.00013698,2]
[353887829,1740113432394,-500.0,0.00013698,2]
[353887830,1740113432404,-690.02,0.00013698,2]
[353887831,1740113432413,-499.94384192,0.00013698,2]
[353887832,1740113432422,-500.0,0.00013698,2]
[353887833,1740113432433,-500.0,0.00013698,2]
[353887834,1740113432443,-506.90499539,0.00013698,2]
[353887835,1740113432453,-503.4046459,0.00013698,2]
[353887836,1740113432463,-500.0,0.00013698,2]
[353887837,1740113432472,-575.81,0.00013698,2]
[353887838,1740113432482,-500.0,0.00013698,2]
[353887839,1740113432491,-500.0,0.00013698,2]
[353887840,1740113432500,-500.0,0.00013698,2]
[353887841,1740113432512,-500.0,0.00013698,2]
[353887842,1740113432522,-500.0,0.00013698,2]
[353887843,1740113432531,-500.0,0.00013698,2]
[353887844,1740113432541,-500.0,0.00013698,2]
[353887845,1740113432551,-500.0,0.00013698,2]
[353887846,1740113432560,-673.52,0.00013698,2]
[353887847,1740113432569,-500.0,0.00013698,2]
[353887848,1740113432579,-508.92,0.00013698,2]
[353887849,1740113432589,-507.34246424,0.00013698,2]
[353887850,1740113432598,-500.0,0.00013698,2]
[353887851,1740113432607,-500.0,0.00013698,2]
[353887852,1740113432616,-500.0,0.00013698,2]
[353887853,1740113432625,-500.0,0.00013698,2]
[353887854,1740113432635,-500.0,0.00013698,2]
[353887855,1740113432644,-500.0,0.00013698,2]
[353887856,1740113432653,-500.0,0.00013698,2]
[353887857,1740113432662,-500.0,0.00013698,2]
[353887858,1740113432671,-500.0,0.00013698,2]
[353887859,1740113432680,-500.0,0.00013698,2]
[353887860,1740113432689,-5392.83,0.00013698,2]
[353887861,1740113432699,-1829.01,0.00013698,2]
[353887862,1740113432710,-2726.07,0.00013698,2]
[353887863,1740113432719,-1055.3,0.00013698,2]
[353887864,1740113432727,-777.58,0.00013698,2]
[353887865,1740113432737,-501.7,0.00013698,2]
[353887866,1740113432747,-500.0,0.00013698,2]
[353887867,1740113432756,-972.14,0.00013698,2]
[353887868,1740113432765,-500.0,0.00013698,2]
[353887869,1740113432775,-11167.92,0.00013698,2]
[353887870,1740113432784,-500.0,0.00013698,2]
[353887871,1740113432794,-21773.86249129,0.00013698,2]
[353887872,1740113432807,-881.630046,0.00013698,2]
[353887881,1740113437924,-3409.34746271,0.00013698,2]
[353887882,1740113437934,-500.0,0.00013698,2]
[353887883,1740113437943,-1733.62,0.00013698,2]
[353887884,1740113437957,-418.63519601,0.00013698,2]
[353887885,1740113437979,-382.45480399,0.00013698,2]
[353887887,1740113437989,-831.72,0.00013698,2]
[353887889,1740113437998,-623.18,0.00013698,2]
[353887890,1740113438007,-1385.86,0.00013698,2]
[353887891,1740113438016,-1082.72,0.00013698,2]
[353887892,1740113438025,-500.0,0.00013698,2]
[353887893,1740113438034,-2782.93,0.00013698,2]
[353887894,1740113438043,-969.06,0.00013698,2]
[353887895,1740113438052,-4581.96,0.00013698,2]
[353887896,1740113438061,-500.0,0.00013698,2]
[353887897,1740113438070,-500.0,0.00013698,2]
[353887898,1740113438079,-2475.36,0.00013698,2]
[353887899,1740113438088,-1373.48,0.00013698,2]
[353887900,1740113438097,-500.0,0.00013698,2]
[353887901,1740113438106,-1414.82,0.00013698,2]
[353887902,1740113438221,-887.18,0.00013698,2]
[353887903,1740113438231,-1655.11,0.00013698,2]
[353887904,1740113438242,-2800.8,0.00013698,2]
[353887905,1740113438251,-733.85,0.00013698,2]
[353887906,1740113438261,-500.0,0.00013698,2]
[353887907,1740113438271,-500.0,0.00013698,2]
[353887908,1740113438281,-603.19,0.00013698,2]
[353887909,1740113438290,-1431.61,0.00013698,2]
[353887910,1740113438299,-500.0,0.00013698,2]
[353887911,1740113438308,-615.05,0.00013698,2]
[353887912,1740113438319,-503.89516596,0.00013698,2]
[353887913,1740113438328,-500.0,0.00013698,2]
[353887914,1740113438338,-500.0,0.00013698,2]
[353887915,1740113438347,-501.28230942,0.00013698,2]
[353887916,1740113438356,-500.0,0.00013698,2]
[353887917,1740113438365,-500.0,0.00013698,2]
[353887918,1740113438374,-500.0,0.00013698,2]
[353887919,1740113438383,-210.0944019,0.00013698,2]
[353887920,1740113438392,-500.0,0.00013698,2]
[353887921,1740113438401,-511.07,0.00013698,2]
[353887922,1740113438410,-500.0,0.00013698,2]
[353887923,1740113438419,-1967.37,0.00013698,2]
[353887924,1740113438428,-501.79654225,0.00013698,2]
[353887925,1740113438438,-500.0,0.00013698,2]
[353887926,1740113438447,-1280.98,0.00013698,2]
[353887927,1740113438456,-500.0,0.00013698,2]
[353887928,1740113438465,-4267.99,0.00013698,2]
[353887929,1740113438474,-620.54,0.00013698,2]
[353887930,1740113438483,-500.0,0.00013698,2]
[353887931,1740113438494,-1214.71,0.00013698,2]
[353887932,1740113438502,-500.0,0.00013698,2]
[353887933,1740113438511,-13113.67,0.00013698,2]
[353887934,1740113438520,-500.0,0.00013698,2]
[353887935,1740113438530,-266.71766763,0.00013698,2]
[353887936,1740113438539,-1820.91,0.00013698,2]
[353887937,1740113438548,-1564.64,0.00013698,2]
[353887938,1740113438557,-500.59182267,0.00013698,2]
[353887939,1740113438567,-500.0,0.00013698,2]
[353887940,1740113438576,-501.90517466,0.00013698,2]
[353887941,1740113438586,-500.0,0.00013698,2]
[353887942,1740113438595,-500.0,0.00013698,2]
[353887943,1740113438604,-500.0,0.00013698,2]
[353887944,1740113438613,-500.38466599,0.00013698,2]
[353887945,1740113438622,-500.0,0.00013698,2]
[353887946,1740113438631,-542.91681949,0.00013698,2]
[353887947,1740113438640,-500.0,0.00013698,2]
[353887948,1740113438649,-179.80221756,0.00013699,2]
[353887949,1740113438658,-250.110914,0.00013699,2]
[353887950,1740113438667,-655.531403,0.00013699,2]
[353887951,1740113438677,-3000.0,0.00013763,2]
[353887952,1740113438686,-500.0,0.0001378,2]
[353887953,1740113438695,-500.0,0.0001378,2]
[353887954,1740113438703,-500.0,0.0001378,2]
[353887955,1740113438713,-500.0,0.0001378,2]
[353887956,1740113438722,-500.0,0.0001378,2]
[353887957,1740113438732,-500.0,0.0001378,2]
[353887958,1740113438742,-500.0,0.0001378,2]
[353887959,1740113438751,-500.0,0.0001378,2]
[353887960,1740113438760,-500.0,0.0001378,2]
[353887961,1740113438770,-500.0,0.0001378,2]
[353887962,1740113438779,-500.0,0.0001378,2]
[353887963,1740113438788,-182.00155929,0.0001378,2]
[353887964,1740113438797,-500.0,0.0001378,2]
[353887965,1740113438806,-500.0,0.0001378,2]
[353887966,1740113438815,-500.0,0.0001378,2]
[353887967,1740113438825,-500.0,0.0001378,2]
[353887968,1740113438834,-500.0,0.0001378,2]
[353887969,1740113438844,-500.0,0.0001378,2]
[353887970,1740113438853,-690.02,0.0001378,2]
[353887971,1740113438863,-500.0,0.0001378,2]
[353887972,1740113438872,-500.0,0.0001378,2]
[353887973,1740113438881,-575.81,0.0001378,2]
[353887974,1740113438890,-500.0,0.0001378,2]
[353887975,1740113438899,-500.0,0.0001378,2]
[353887976,1740113438909,-500.0,0.0001378,2]
[353887977,1740113438918,-500.0,0.0001378,2]
[353887978,1740113438928,-500.0,0.0001378,2]
[353887979,1740113438937,-500.0,0.0001378,2]
[353887980,1740113438946,-500.0,0.0001378,2]
[353887981,1740113438955,-500.0,0.0001378,2]
[353887982,1740113438965,-673.52,0.0001378,2]
[353887983,1740113438974,-500.0,0.0001378,2]
[353887984,1740113438983,-508.92,0.0001378,2]
[353887985,1740113438992,-500.0,0.0001378,2]
[353887986,1740113439001,-500.0,0.0001378,2]
[353887987,1740113439011,-500.0,0.0001378,2]
[353887988,1740113439020,-500.0,0.0001378,2]
[353887989,1740113439030,-500.0,0.0001378,2]
[353887990,1740113439039,-500.0,0.0001378,2]
[353887991,1740113439048,-500.0,0.0001378,2]
[353887992,1740113439057,-500.0,0.0001378,2]
[353887993,1740113439067,-500.0,0.0001378,2]
[353887994,1740113439076,-500.0,0.0001378,2]
[353887995,1740113439087,-5392.83,0.0001378,2]
[353887996,1740113439096,-1829.01,0.0001378,2]
[353887997,1740113439105,-2726.07,0.0001378,2]
[353887998,1740113439115,-1055.3,0.0001378,2]
[353887999,1740113439124,-777.58,0.0001378,2]
[353888000,1740113439134,-501.7,0.0001378,2]
[353888001,1740113439143,-500.0,0.0001378,2]
[353888002,1740113439152,-972.14,0.0001378,2]
[353888003,1740113439164,-500.0,0.0001378,2]
[353888004,1740113439175,-11167.92,0.0001378,2]
[353888005,1740113439184,-500.0,0.0001378,2]
[353888006,1740113439194,-26064.84,0.0001378,2]
[353888007,1740113439204,-500.0,0.0001378,2]
[353888008,1740113439213,-1733.62,0.0001378,2]
[353888009,1740113439222,-801.09,0.0001378,2]
[353888010,1740113439232,-831.72,0.0001378,2]
[353888011,1740113439245,-623.18,0.0001378,2]
[353888012,1740113439255,-1385.86,0.0001378,2]
[353888013,1740113439263,-1082.72,0.0001378,2]
[353888014,1740113439273,-500.0,0.0001378,2]
[353888015,1740113439284,-2782.93,0.0001378,2]
[353888016,1740113439293,-969.06,0.0001378,2]
[353888017,1740113439303,-4581.96,0.0001378,2]
[353888018,1740113439313,-500.0,0.0001378,2]
[353888019,1740113439322,-500.0,0.0001378,2]
[353888020,1740113439332,-2475.36,0.0001378,2]
[353888021,1740113439344,-1373.48,0.0001378,2]
[353888022,1740113439357,-500.0,0.0001378,2]
[353888023,1740113439371,-1414.82,0.0001378,2]
[353888024,1740113439384,-887.18,0.0001378,2]
[353888025,1740113439396,-1655.11,0.0001378,2]
[353888026,1740113439406,-2800.8,0.0001378,2]
[353888027,1740113439419,-733.85,0.0001378,2]
[353888028,1740113439433,-500.0,0.0001378,2]
[353888029,1740113439445,-500.0,0.0001378,2]
[353888030,1740113439461,-603.19,0.0001378,2]
[353888031,1740113439473,-1431.61,0.0001378,2]
[353888032,1740113439486,-500.0,0.0001378,2]
[353888033,1740113439497,-615.05,0.0001378,2]
[353888034,1740113439510,-500.0,0.0001378,2]
[353888035,1740113439522,-500.0,0.0001378,2]
[353888036,1740113439535,-500.0,0.0001378,2]
[353888037,1740113439546,-500.0,0.0001378,2]
[353888038,1740113439559,-500.0,0.0001378,2]
[353888039,1740113439571,-511.07,0.0001378,2]
[353888040,1740113439583,-500.0,0.0001378,2]
[353888042,1740113439597,-1967.37,0.0001378,2]
[353888043,1740113439609,-500.0,0.0001378,2]
[353888044,1740113439621,-1280.98,0.0001378,2]
[353888045,1740113439632,-500.0,0.0001378,2]
[353888046,1740113439642,-4267.99,0.0001378,2]
[353888047,1740113439653,-620.54,0.0001378,2]
[353888048,1740113439664,-500.0,0.0001378,2]
[353888049,1740113439675,-1214.71,0.0001378,2]
[353888050,1740113439688,-13113.67,0.0001378,2]
[353888051,1740113439700,-500.0,0.0001378,2]
[353888052,1740113439712,-1820.91,0.0001378,2]
[353888053,1740113439723,-1564.64,0.0001378,2]
[353888055,1740113439736,-500.0,0.0001378,2]
[353888057,1740113439749,-500.0,0.0001378,2]
[353888059,1740113439761,-500.0,0.0001378,2]
[353888061,1740113439775,-500.0,0.0001378,2]
[353888063,1740113439786,-500.0,0.0001378,2]
[353888064,1740113439796,-3000.0,0.00013845,2]
[353888065,1740113439806,-8630.71077294,0.00013845,2]
[353888066,1740113439816,-500.0,0.00013862,2]
[353888067,1740113439826,-510.37368427,0.00013862,2]
[353888068,1740113439839,-500.0,0.00013862,2]
[353888069,1740113439852,-572.07750074,0.00013862,2]
[353888070,1740113439865,-500.0,0.00013862,2]
[353888071,1740113439875,-500.0,0.00013862,2]
[353888072,1740113439885,-500.0,0.00013862,2]
[353888073,1740113439895,-408.63771827,0.00013862,2]
[353888074,1740113439906,-500.0,0.00013862,2]
[353888075,1740113439918,-460.202981,0.00013862,2]
[353888076,1740113439929,-500.0,0.00013862,2]
[353888077,1740113439939,-500.0,0.00013862,2]
[353888078,1740113439949,-485.98931796,0.00013862,2]
[353888079,1740113439960,-500.0,0.00013862,2]
[353888080,1740113439970,-597.09565214,0.00013862,2]
[353888081,1740113439981,-500.0,0.00013863,2]
[353888082,1740113439992,-500.0,0.00013863,2]
[353888083,1740113440003,-500.0,0.00013863,2]
[353888084,1740113440014,-500.0,0.00013863,2]
[353888085,1740113440024,-500.0,0.00013863,2]
[353888086,1740113440035,-500.24904968,0.00013863,2]
[353888087,1740113440046,-500.0,0.00013863,2]
[353888088,1740113440059,-500.0,0.00013863,2]
[353888089,1740113440070,-500.0,0.00013863,2]
[353888090,1740113440082,-500.0,0.00013863,2]
[353888091,1740113440093,-500.0,0.00013863,2]
[353888092,1740113440104,-625.66626844,0.00013863,2]
[353888094,1740113440115,-500.0,0.00013863,2]
[353888096,1740113440126,-500.0,0.00013863,2]
[353888097,1740113440137,-500.0,0.00013863,2]
[353888098,1740113440149,-500.0,0.00013863,2]
[353888099,1740113440159,-690.02,0.00013863,2]
[353888100,1740113440170,-357.65815289,0.00013863,2]
[353888101,1740113440181,-500.0,0.00013863,2]
[353888102,1740113440192,-575.81,0.00013863,2]
[353888103,1740113440203,-500.0,0.00013863,2]
[353888104,1740113440214,-500.0,0.00013863,2]
[353888105,1740113440225,-500.0,0.00013863,2]
[353888106,1740113440238,-500.0,0.00013863,2]
[353888107,1740113440249,-500.0,0.00013863,2]
[353888108,1740113440259,-500.0,0.00013863,2]
[353888109,1740113440270,-500.0,0.00013863,2]
[353888110,1740113440282,-500.0,0.00013863,2]
[353888111,1740113440293,-673.52,0.00013863,2]
[353888112,1740113440304,-268.1765314,0.00013863,2]
[353888113,1740113440316,-508.92,0.00013863,2]
[353888114,1740113440327,-500.0,0.00013863,2]
[353888115,1740113440338,-500.0,0.00013863,2]
[353888116,1740113440349,-500.0,0.00013863,2]
[353888117,1740113440360,-500.0,0.00013863,2]
[353888118,1740113440371,-500.0,0.00013863,2]
[353888119,1740113440381,-500.0,0.00013863,2]
[353888120,1740113440392,-200.0,0.00013863,2]
[353888121,1740113440402,-500.0,0.00013863,2]
[353888122,1740113440413,-500.0,0.00013863,2]
[353888123,1740113440423,-500.0,0.00013863,2]
[353888124,1740113440433,-5392.83,0.00013863,2]
[353888125,1740113440444,-1829.01,0.00013863,2]
[353888126,1740113440455,-2726.07,0.00013863,2]
[353888127,1740113440466,-1055.3,0.00013863,2]
[353888128,1740113440476,-777.58,0.00013863,2]
[353888129,1740113440487,-501.7,0.00013863,2]
[353888130,1740113440498,-500.0,0.00013863,2]
[353888131,1740113440508,-972.14,0.00013863,2]
[353888132,1740113440519,-500.0,0.00013863,2]
[353888133,1740113440529,-11167.92,0.00013863,2]
[353888134,1740113440540,-500.0,0.00013863,2]
[353888135,1740113440551,-26064.84,0.00013863,2]
[353888136,1740113440562,-500.0,0.00013863,2]
[353888137,1740113440572,-1733.62,0.00013863,2]
[353888138,1740113440584,-801.09,0.00013863,2]
[353888139,1740113440593,-831.72,0.00013863,2]
[353888140,1740113440603,-623.18,0.00013863,2]
[353888141,1740113440612,-1385.86,0.00013863,2]
[353888142,1740113440761,-1082.72,0.00013863,2]
[353888143,1740113440772,-500.0,0.00013863,2]
[353888144,1740113440782,-2782.93,0.00013863,2]
[353888145,1740113440791,-969.06,0.00013863,2]
[353888146,1740113440801,-4581.96,0.00013863,2]
[353888147,1740113440810,-500.0,0.00013863,2]
[353888148,1740113440820,-500.0,0.00013863,2]
[353888149,1740113440829,-2475.36,0.00013863,2]
[353888150,1740113440839,-1373.48,0.00013863,2]
[353888151,1740113440848,-500.0,0.00013863,2]
[353888152,1740113440857,-1414.82,0.00013863,2]
[353888153,1740113440867,-887.18,0.00013863,2]
[353888154,1740113440875,-1655.11,0.00013863,2]
[353888155,1740113440883,-2800.8,0.00013863,2]
[353888156,1740113440891,-733.85,0.00013863,2]
[353888157,1740113440902,-157.98820574,0.00013863,2]
[353888158,1740113440911,-500.0,0.00013863,2]
[353888159,1740113440921,-603.19,0.00013863,2]
[353888160,1740113440930,-1431.61,0.00013863,2]
[353888161,1740113440939,-500.0,0.00013863,2]
[353888162,1740113440948,-615.05,0.00013863,2]
[353888163,1740113440957,-500.0,0.00013863,2]
[353888164,1740113440967,-500.0,0.00013863,2]
[353888165,1740113440976,-500.0,0.00013863,2]
[353888166,1740113440985,-500.0,0.00013863,2]
[353888167,1740113440995,-511.07,0.00013863,2]
[353888168,1740113441004,-500.0,0.00013863,2]
[353888169,1740113441013,-1967.37,0.00013863,2]
[353888170,1740113441022,-500.0,0.00013863,2]
[353888171,1740113441031,-1280.98,0.00013863,2]
[353888172,1740113441040,-500.0,0.00013863,2]
[353888173,1740113441049,-4267.99,0.00013863,2]
[353888174,1740113441058,-620.54,0.00013863,2]
[353888175,1740113441067,-500.0,0.00013863,2]
[353888176,1740113441076,-1214.71,0.00013863,2]
[353888177,1740113441086,-13113.67,0.00013863,2]
[353888178,1740113441095,-500.0,0.00013863,2]
[353888179,1740113441104,-1820.91,0.00013863,2]
[353888180,1740113441113,-1564.64,0.00013863,2]
[353888181,1740113441122,-500.0,0.00013863,2]
[353888182,1740113441132,-500.0,0.00013863,2]
[353888183,1740113441141,-500.0,0.00013863,2]
[353888184,1740113441150,-500.0,0.00013863,2]
[353888185,1740113441159,-500.0,0.00013863,2]
[353888186,1740113441169,-151.0,0.000139,2]
[353888187,1740113441178,-151.0,0.000139,2]
[353888188,1740113441187,-500.0,0.00013945,2]
[353888189,1740113441197,-500.0,0.00013945,2]
[353888190,1740113441207,-500.0,0.00013945,2]
[353888191,1740113441216,-500.0,0.00013945,2]
[353888192,1740113441225,-500.0,0.00013945,2]
[353888193,1740113441237,-500.0,0.00013945,2]
[353888194,1740113441246,-500.0,0.00013945,2]
[353888195,1740113441255,-500.0,0.00013945,2]
[353888196,1740113441264,-525.3692012,0.00013945,2]
[353888197,1740113441274,-500.0,0.00013945,2]
[353888198,1740113441283,-500.0,0.00013945,2]
[353888199,1740113441291,-500.0,0.00013945,2]
[353888200,1740113441300,-500.0,0.00013945,2]
[353888201,1740113441309,-500.0,0.00013945,2]
[353888202,1740113441321,-690.02,0.00013945,2]
[353888203,1740113441331,-500.0,0.00013945,2]
[353888204,1740113441341,-575.81,0.00013945,2]
[353888205,1740113441350,-500.0,0.00013945,2]
[353888206,1740113441359,-505.80932262,0.00013945,2]
[353888207,1740113441368,-500.0,0.00013945,2]
[353888208,1740113441377,-500.0,0.00013945,2]
[353888209,1740113441387,-500.0,0.00013945,2]
[353888210,1740113441396,-500.0,0.00013945,2]
[353888211,1740113441406,-500.0,0.00013945,2]
[353888212,1740113441415,-500.0,0.00013945,2]
[353888213,1740113441424,-673.52,0.00013945,2]
[353888214,1740113441434,-508.92,0.00013945,2]
[353888215,1740113441443,-500.0,0.00013945,2]
[353888216,1740113441452,-500.0,0.00013945,2]
[353888217,1740113441462,-500.0,0.00013945,2]
[353888218,1740113441471,-500.0,0.00013945,2]
[353888219,1740113441481,-500.0,0.00013945,2]
[353888220,1740113441490,-500.0,0.00013945,2]
[353888221,1740113441499,-500.0,0.00013945,2]
[353888222,1740113441508,-500.0,0.00013945,2]
[353888223,1740113441518,-500.0,0.00013945,2]
[353888224,1740113441527,-5392.83,0.00013945,2]
[353888225,1740113441536,-1829.01,0.00013945,2]
[353888226,1740113441546,-2726.07,0.00013945,2]
[353888227,1740113441555,-1055.3,0.00013945,2]
[353888228,1740113441564,-501.7,0.00013945,2]
[353888229,1740113441573,-777.58,0.00013945,2]
[353888230,1740113441584,-500.0,0.00013945,2]
[353888231,1740113441594,-972.14,0.00013945,2]
[353888232,1740113441603,-500.0,0.00013945,2]
[353888233,1740113441614,-11167.92,0.00013945,2]
[353888234,1740113441623,-500.0,0.00013945,2]
[353888235,1740113441634,-26064.84,0.00013945,2]